[Event "*** Titled Tuesday Blitz"]
[Site "Chess.com"]
[Date "2021.03.09"]
[Round "5"]
[White "Supernotar"]
[Black "witcher8"]
[Result "1-0"]
[WhiteElo "2726"]
[BlackElo "2460"]
[TimeControl "180+1"]
[EndTime "10:59:40 PST"]
[Termination "Supernotar won by checkmate"]

1. d4 {[%clk 0:03:00.9]} 1... Nf6 {[%clk 0:02:59.8]} 2. c4 {[%clk 0:03:00]} 2...
g6 {[%clk 0:03:00.1]} 3. Nc3 {[%clk 0:02:59.3]} 3... Bg7 {[%clk 0:03:01]} 4. e4
{[%clk 0:02:59.5]} 4... d6 {[%clk 0:03:01.9]} 5. Be2 {[%clk 0:03:00.2]} 5... O-O
{[%clk 0:03:02.1]} 6. Nf3 {[%clk 0:03:01.1]} 6... e5 {[%clk 0:03:01.3]} 7. O-O
{[%clk 0:03:01.1]} 7... Nc6 {[%clk 0:03:01.6]} 8. d5 {[%clk 0:03:01.3]} 8... Ne7
{[%clk 0:03:01.6]} 9. Ne1 {[%clk 0:03:02.2]} 9... Nd7 {[%clk 0:02:59.8]} 10. Be3
{[%clk 0:03:03.1]} 10... f5 {[%clk 0:02:59.7]} 11. f3 {[%clk 0:03:04]} 11... f4
{[%clk 0:02:59.2]} 12. Bf2 {[%clk 0:03:04.3]} 12... g5 {[%clk 0:03:00.1]} 13. a4
{[%clk 0:03:03.4]} 13... a5 {[%clk 0:02:28.2]} 14. Nd3 {[%clk 0:03:03.2]} 14...
b6 {[%clk 0:02:27.9]} 15. b4 {[%clk 0:03:03.2]} 15... axb4 {[%clk 0:02:23.7]}
16. Nxb4 {[%clk 0:03:04.1]} 16... Nf6 {[%clk 0:02:24]} 17. Nc6 {[%clk
0:03:04.3]} 17... Nxc6 {[%clk 0:02:15.3]} 18. dxc6 {[%clk 0:03:05.2]} 18... Be6
{[%clk 0:02:14.4]} 19. Nd5 {[%clk 0:03:05.6]} 19... g4 {[%clk 0:02:10.5]} 20.
Bh4 {[%clk 0:02:44.7]} 20... gxf3 {[%clk 0:02:08.3]} 21. Bxf3 {[%clk 0:02:40.9]}
21... Kh8 {[%clk 0:02:07.8]} 22. a5 {[%clk 0:02:30.5]} 22... bxa5 {[%clk
0:02:03]} 23. Qa4 {[%clk 0:02:30.2]} 23... Qc8 {[%clk 0:02:00.5]} 24. Rfb1
{[%clk 0:02:22.9]} 24... Nxd5 {[%clk 0:01:59]} 25. cxd5 {[%clk 0:02:22.3]} 25...
Bg4 {[%clk 0:01:58.2]} 26. Qd1 {[%clk 0:02:18]} 26... Bxf3 {[%clk 0:01:52.1]}
27. Qxf3 {[%clk 0:02:18.9]} 27... Bf6 {[%clk 0:01:42.8]} 28. Bf2 {[%clk
0:02:10.6]} 28... Qa6 {[%clk 0:01:28.8]} 29. Rb7 {[%clk 0:01:59.4]} 29... Rf7
{[%clk 0:01:21.7]} 30. Ra4 {[%clk 0:01:58.9]} 30... Bd8 {[%clk 0:01:12.4]} 31.
h3 {[%clk 0:01:54.5]} 31... Rg7 {[%clk 0:01:10.3]} 32. Be1 {[%clk 0:01:51.1]}
32... Rc8 {[%clk 0:00:25.8]} 33. Rxa5 {[%clk 0:01:50.6]} 33... Qc4 {[%clk
0:00:25.9]} 34. Rba7 {[%clk 0:01:46.9]} 34... Qc1 {[%clk 0:00:20.9]} 35. Ra1
{[%clk 0:01:37.1]} 35... Qb2 {[%clk 0:00:21.1]} 36. Ra8 {[%clk 0:01:32.9]} 36...
Rxa8 {[%clk 0:00:20.8]} 37. Rxa8 {[%clk 0:01:33.8]} 37... Rg8 {[%clk 0:00:21.7]}
38. Bf2 {[%clk 0:01:21.5]} 38... Qd2 {[%clk 0:00:20.7]} 39. Kh2 {[%clk
0:01:19.1]} 39... Qb2 {[%clk 0:00:19]} 40. Rc8 {[%clk 0:01:10.7]} 40... Qc2
{[%clk 0:00:18.8]} 41. Ra8 {[%clk 0:00:58]} 41... Qb2 {[%clk 0:00:19.1]} 42. Be1
{[%clk 0:00:48.5]} 42... Qc2 {[%clk 0:00:18.3]} 43. Ba5 {[%clk 0:00:45.6]} 43...
Qc5 {[%clk 0:00:17.8]} 44. Qh5 {[%clk 0:00:40.1]} 44... Qa3 {[%clk 0:00:10.4]}
45. Qf3 {[%clk 0:00:32.8]} 45... Qa4 {[%clk 0:00:09.8]} 46. Rxd8 {[%clk
0:00:22.2]} 46... Rxd8 {[%clk 0:00:09.5]} 47. Bxc7 {[%clk 0:00:23.1]} 47... Rg8
{[%clk 0:00:07.6]} 48. Bxd6 {[%clk 0:00:23]} 48... Rg3 {[%clk 0:00:07.5]} 49.
Bxe5+ {[%clk 0:00:21.6]} 49... Kg8 {[%clk 0:00:07.7]} 50. Qxf4 {[%clk
0:00:19.6]} 50... Rg6 {[%clk 0:00:08.2]} 51. c7 {[%clk 0:00:17.6]} 51... Qc2
{[%clk 0:00:07.4]} 52. Qf3 {[%clk 0:00:15.4]} 52... h5 {[%clk 0:00:05]} 53. d6
{[%clk 0:00:15.2]} 53... Qc5 {[%clk 0:00:03.4]} 54. Qf5 {[%clk 0:00:12.3]} 54...
Qc2 {[%clk 0:00:02.4]} 55. Qxg6+ {[%clk 0:00:12.3]} 55... Kf8 {[%clk 0:00:02.1]}
56. Qf6+ {[%clk 0:00:12.3]} 56... Kg8 {[%clk 0:00:01.9]} 57. Qg7# {[%clk
0:00:12.7]} 1-0

[Event "*** Titled Tuesday Blitz"]
[Site "Chess.com"]
[Date "2021.03.09"]
[Round "5"]
[White "paulrusan"]
[Black "thisunaa"]
[Result "1-0"]
[WhiteElo "2316"]
[BlackElo "1993"]
[TimeControl "180+1"]
[EndTime "10:59:40 PST"]
[Termination "paulrusan won by resignation"]

1. e4 {[%clk 0:03:00.4]} 1... c5 {[%clk 0:02:59.3]} 2. b4 {[%clk 0:02:59.9]}
2... b6 {[%clk 0:02:41]} 3. bxc5 {[%clk 0:02:59.4]} 3... bxc5 {[%clk 0:02:41]}
4. Nc3 {[%clk 0:03:00]} 4... g6 {[%clk 0:02:39.2]} 5. Rb1 {[%clk 0:02:59.2]}
5... Bg7 {[%clk 0:02:37.4]} 6. Nf3 {[%clk 0:02:59]} 6... Nc6 {[%clk 0:02:37.5]}
7. Bb5 {[%clk 0:02:58]} 7... Bb7 {[%clk 0:02:20]} 8. Ba4 {[%clk 0:02:56.6]} 8...
Qc8 {[%clk 0:02:15.5]} 9. Ba3 {[%clk 0:02:35.4]} 9... d6 {[%clk 0:02:03.9]} 10.
e5 {[%clk 0:02:35.1]} 10... dxe5 {[%clk 0:01:44.5]} 11. Bxc5 {[%clk 0:02:31]}
11... Nf6 {[%clk 0:01:44.3]} 12. O-O {[%clk 0:02:21.1]} 12... O-O {[%clk
0:01:37.7]} 13. Re1 {[%clk 0:02:09.7]} 13... e4 {[%clk 0:01:13.9]} 14. Nxe4
{[%clk 0:01:58.6]} 14... Nxe4 {[%clk 0:01:12.8]} 15. Rxe4 {[%clk 0:01:58.8]}
15... Na5 {[%clk 0:01:07.8]} 16. Bxe7 {[%clk 0:01:20.4]} 16... Bxe4 {[%clk
0:01:04]} 17. Bxf8 {[%clk 0:01:19.5]} 17... Bxf8 {[%clk 0:01:02.9]} 18. Ng5
{[%clk 0:01:14.9]} 18... Bc6 {[%clk 0:00:51.3]} 19. c3 {[%clk 0:01:06.9]} 19...
h6 {[%clk 0:00:47]} 20. Nf3 {[%clk 0:01:04.5]} 20... Bxa4 {[%clk 0:00:43.9]} 21.
Qxa4 {[%clk 0:01:04.4]} 21... Nc4 {[%clk 0:00:44.2]} 22. d3 {[%clk 0:00:49]}
22... Nb6 {[%clk 0:00:39.8]} 23. Qc2 {[%clk 0:00:48.3]} 23... Bg7 {[%clk
0:00:38]} 24. Rb3 {[%clk 0:00:46.6]} 24... Qc7 {[%clk 0:00:36.1]} 25. g3 {[%clk
0:00:39.9]} 25... Rc8 {[%clk 0:00:35.5]} 26. c4 {[%clk 0:00:37.2]} 26... Qc6
{[%clk 0:00:34.6]} 27. Nd2 {[%clk 0:00:31.9]} 27... Bd4 {[%clk 0:00:31.2]} 28.
Ne4 {[%clk 0:00:31.3]} 28... f5 {[%clk 0:00:28.2]} 29. Nc3 {[%clk 0:00:31.1]}
29... Bg7 {[%clk 0:00:24.2]} 30. Nb5 {[%clk 0:00:26.3]} 30... a6 {[%clk
0:00:23.1]} 31. Na7 {[%clk 0:00:26.3]} 31... Qc7 {[%clk 0:00:22]} 32. Nxc8
{[%clk 0:00:26.4]} 32... Nxc8 {[%clk 0:00:19.8]} 33. Qb1 {[%clk 0:00:23.9]}
33... Nd6 {[%clk 0:00:19.1]} 34. Rb8+ {[%clk 0:00:23.1]} 34... Kh7 {[%clk
0:00:18.7]} 35. Qb6 {[%clk 0:00:23.6]} 35... Qe7 {[%clk 0:00:17.5]} 36. Kf1
{[%clk 0:00:20]} 36... Qe5 {[%clk 0:00:17]} 37. Rd8 {[%clk 0:00:13.4]} 37... Nf7
{[%clk 0:00:16.7]} 38. Rd7 {[%clk 0:00:12.8]} 38... Ng5 {[%clk 0:00:16.8]} 39.
Qc7 {[%clk 0:00:10.7]} 39... Qa1+ {[%clk 0:00:16.5]} 40. Kg2 {[%clk 0:00:11]}
40... Qf6 {[%clk 0:00:15.4]} 41. h4 {[%clk 0:00:10.3]} 41... Ne6 {[%clk
0:00:15.7]} 42. Qd6 {[%clk 0:00:08.9]} 42... h5 {[%clk 0:00:11.6]} 43. c5 {[%clk
0:00:07.9]} 43... Qd4 {[%clk 0:00:08.4]} 44. Qxd4 {[%clk 0:00:07.5]} 44... Nxd4
{[%clk 0:00:08.9]} 45. Rd6 {[%clk 0:00:04.3]} 45... Be5 {[%clk 0:00:08.4]} 46.
Rd7+ {[%clk 0:00:04.3]} 46... Kg8 {[%clk 0:00:08]} 47. f4 {[%clk 0:00:04.9]}
47... Bb8 {[%clk 0:00:06.2]} 48. Rd8+ {[%clk 0:00:04.8]} 48... Kf7 {[%clk
0:00:06.2]} 49. Rxb8 {[%clk 0:00:05.4]} 49... Nc6 {[%clk 0:00:06.8]} 50. Rb6
{[%clk 0:00:05.2]} 50... Nb4 {[%clk 0:00:06.8]} 51. Rxb4 {[%clk 0:00:04.9]} 1-0

[Event "*** Titled Tuesday Blitz"]
[Site "Chess.com"]
[Date "2021.03.09"]
[Round "5"]
[White "SaraciNderim"]
[Black "albi1999"]
[Result "1/2-1/2"]
[WhiteElo "2792"]
[BlackElo "2602"]
[TimeControl "180+1"]
[EndTime "10:59:43 PST"]
[Termination "Game drawn - insufficient material"]

1. e4 {[%clk 0:03:00.9]} 1... e5 {[%clk 0:02:58.6]} 2. Nf3 {[%clk 0:03:00.5]}
2... Nc6 {[%clk 0:02:56.7]} 3. Bb5 {[%clk 0:03:00.3]} 3... a6 {[%clk 0:02:56.3]}
4. Bxc6 {[%clk 0:03:00]} 4... dxc6 {[%clk 0:02:56.1]} 5. d4 {[%clk 0:03:00.1]}
5... exd4 {[%clk 0:02:55.7]} 6. Qxd4 {[%clk 0:03:00.2]} 6... Qxd4 {[%clk
0:02:54.4]} 7. Nxd4 {[%clk 0:03:00.4]} 7... Bd7 {[%clk 0:02:54.2]} 8. Nc3 {[%clk
0:02:59.4]} 8... O-O-O {[%clk 0:02:52.2]} 9. Be3 {[%clk 0:02:58.6]} 9... Bb4
{[%clk 0:02:50.5]} 10. Ne2 {[%clk 0:02:58.4]} 10... Re8 {[%clk 0:02:43.6]} 11.
O-O-O {[%clk 0:02:56.3]} 11... f5 {[%clk 0:02:42.4]} 12. exf5 {[%clk 0:02:43]}
12... Bxf5 {[%clk 0:02:43.3]} 13. a3 {[%clk 0:02:41.1]} 13... Bd6 {[%clk
0:02:39.9]} 14. Ng3 {[%clk 0:02:32]} 14... Bg6 {[%clk 0:02:40]} 15. Bd4 {[%clk
0:02:06]} 15... Nf6 {[%clk 0:02:38.2]} 16. Rhe1 {[%clk 0:02:05]} 16... h5 {[%clk
0:02:32.7]} 17. f3 {[%clk 0:00:58.5]} 17... h4 {[%clk 0:02:20.6]} 18. Nge4
{[%clk 0:00:57.4]} 18... Nxe4 {[%clk 0:02:07.6]} 19. Nxe4 {[%clk 0:00:55.3]}
19... Bxe4 {[%clk 0:02:03.8]} 20. fxe4 {[%clk 0:00:37.9]} 20... Bxh2 {[%clk
0:01:57]} 21. Bxg7 {[%clk 0:00:37.8]} 21... Rhg8 {[%clk 0:01:32.4]} 22. Bf6
{[%clk 0:00:36.9]} 22... Rxg2 {[%clk 0:01:19.4]} 23. Bxh4 {[%clk 0:00:35.8]}
23... Rg4 {[%clk 0:01:18.3]} 24. Bf6 {[%clk 0:00:31.4]} 24... Be5 {[%clk
0:01:05.4]} 25. Bxe5 {[%clk 0:00:12.4]} 25... Rxe5 {[%clk 0:01:06.3]} 26. Rd4
{[%clk 0:00:13]} 26... b6 {[%clk 0:00:53.8]} 27. Kd2 {[%clk 0:00:11.5]} 27... c5
{[%clk 0:00:51.9]} 28. Rc4 {[%clk 0:00:11.5]} 28... Kd7 {[%clk 0:00:26.7]} 29.
a4 {[%clk 0:00:11.4]} 29... b5 {[%clk 0:00:22.4]} 30. axb5 {[%clk 0:00:11.3]}
30... axb5 {[%clk 0:00:23.3]} 31. Rc3 {[%clk 0:00:11.8]} 31... Rgxe4 {[%clk
0:00:14.5]} 32. Rxe4 {[%clk 0:00:10.4]} 32... Rxe4 {[%clk 0:00:15.4]} 33. Rxc5
{[%clk 0:00:11]} 33... c6 {[%clk 0:00:16]} 34. Kd3 {[%clk 0:00:11.1]} 34... Rg4
{[%clk 0:00:14.9]} 35. Rh5 {[%clk 0:00:11]} 35... Kc7 {[%clk 0:00:14.3]} 36. Kc3
{[%clk 0:00:11.3]} 36... Kb6 {[%clk 0:00:14.5]} 37. Kb3 {[%clk 0:00:11.5]} 37...
Rg3+ {[%clk 0:00:14.7]} 38. c3 {[%clk 0:00:11.9]} 38... Rg4 {[%clk 0:00:15.6]}
39. Rh8 {[%clk 0:00:12]} 39... Rf4 {[%clk 0:00:15.9]} 40. Ka3 {[%clk 0:00:11.6]}
40... Re4 {[%clk 0:00:16.3]} 41. b3 {[%clk 0:00:12]} 41... Rf4 {[%clk
0:00:16.7]} 42. Rb8+ {[%clk 0:00:12.1]} 42... Kc7 {[%clk 0:00:16.3]} 43. Rg8
{[%clk 0:00:13]} 43... Re4 {[%clk 0:00:16.5]} 44. Kb2 {[%clk 0:00:12.9]} 44...
Re2+ {[%clk 0:00:15.8]} 45. Kc1 {[%clk 0:00:13.1]} 45... Kb6 {[%clk 0:00:15.6]}
46. Kd1 {[%clk 0:00:13.1]} 46... Rb2 {[%clk 0:00:15.6]} 47. b4 {[%clk
0:00:13.5]} 47... Rh2 {[%clk 0:00:14.7]} 48. Rg7 {[%clk 0:00:12.9]} 48... Rf2
{[%clk 0:00:13.8]} 49. Rd7 {[%clk 0:00:12.8]} 49... Rh2 {[%clk 0:00:12.9]} 50.
Rd2 {[%clk 0:00:12.8]} 50... Rxd2+ {[%clk 0:00:12.2]} 51. Kxd2 {[%clk
0:00:13.7]} 51... Kc7 {[%clk 0:00:12.4]} 52. Kd3 {[%clk 0:00:14.2]} 52... Kd6
{[%clk 0:00:12.9]} 53. Kd4 {[%clk 0:00:14.6]} 53... Kd7 {[%clk 0:00:13.5]} 54.
Ke4 {[%clk 0:00:12.8]} 54... Ke6 {[%clk 0:00:13.4]} 55. Kd4 {[%clk 0:00:12.1]}
55... Kd6 {[%clk 0:00:13.9]} 56. c4 {[%clk 0:00:11.8]} 56... bxc4 {[%clk
0:00:13.3]} 57. Kxc4 {[%clk 0:00:12.7]} 57... Kc7 {[%clk 0:00:13.8]} 58. b5
{[%clk 0:00:13.2]} 58... cxb5+ {[%clk 0:00:14.1]} 59. Kxb5 {[%clk 0:00:14]}
1/2-1/2

[Event "*** Titled Tuesday Blitz"]
[Site "Chess.com"]
[Date "2021.03.09"]
[Round "5"]
[White "serhanberat_ozdemir"]
[Black "ri4mi"]
[Result "0-1"]
[WhiteElo "2550"]
[BlackElo "2428"]
[TimeControl "180+1"]
[EndTime "10:59:43 PST"]
[Termination "ri4mi won by resignation"]

1. e4 {[%clk 0:03:00.9]} 1... Nf6 {[%clk 0:02:56.3]} 2. e5 {[%clk 0:02:59.1]}
2... Nd5 {[%clk 0:02:56.6]} 3. d4 {[%clk 0:02:59.8]} 3... d6 {[%clk 0:02:56.8]}
4. c4 {[%clk 0:03:00.5]} 4... Nb6 {[%clk 0:02:56.6]} 5. f4 {[%clk 0:03:01.2]}
5... dxe5 {[%clk 0:02:56.2]} 6. fxe5 {[%clk 0:03:02.1]} 6... Nc6 {[%clk
0:02:56.9]} 7. Be3 {[%clk 0:03:02.3]} 7... Bf5 {[%clk 0:02:55.6]} 8. Nc3 {[%clk
0:03:02.6]} 8... e6 {[%clk 0:02:56.1]} 9. Be2 {[%clk 0:03:01.7]} 9... f6 {[%clk
0:02:51]} 10. exf6 {[%clk 0:02:59.6]} 10... Qxf6 {[%clk 0:02:51.9]} 11. Nf3
{[%clk 0:02:57.1]} 11... O-O-O {[%clk 0:02:24.3]} 12. Bg5 {[%clk 0:02:45]} 12...
Nxd4 {[%clk 0:02:22.2]} 13. Bxf6 {[%clk 0:02:40.8]} 13... Nxf3+ {[%clk
0:02:21.8]} 14. gxf3 {[%clk 0:02:07.6]} 14... Rxd1+ {[%clk 0:02:22.7]} 15. Rxd1
{[%clk 0:02:07.1]} 15... gxf6 {[%clk 0:02:23.6]} 16. Rg1 {[%clk 0:01:52.6]}
16... Bb4 {[%clk 0:01:53.6]} 17. Rg7 {[%clk 0:01:35.6]} 17... e5 {[%clk
0:01:34.6]} 18. Bd3 {[%clk 0:01:12]} 18... Bxd3 {[%clk 0:01:19.2]} 19. Rxd3
{[%clk 0:01:12.9]} 19... Nxc4 {[%clk 0:01:15.2]} 20. Rdd7 {[%clk 0:00:53.3]}
20... Ba5 {[%clk 0:01:14.2]} 21. Ke2 {[%clk 0:00:43.9]} 21... Nxb2 {[%clk
0:00:54.5]} 22. Nb5 {[%clk 0:00:43.8]} 22... Rd8 {[%clk 0:00:43.3]} 23. Nxa7+
{[%clk 0:00:42]} 23... Kb8 {[%clk 0:00:40.6]} 24. Nc6+ {[%clk 0:00:26.1]} 24...
bxc6 {[%clk 0:00:41.1]} 25. Rxd8+ {[%clk 0:00:27]} 25... Kb7 {[%clk 0:00:41.7]}
26. Rxh7 {[%clk 0:00:27.1]} 26... c5 {[%clk 0:00:40.3]} 27. Rd5 {[%clk
0:00:08.7]} 27... Kc6 {[%clk 0:00:37.4]} 28. Rhd7 {[%clk 0:00:07]} 28... Na4
{[%clk 0:00:34.5]} 29. Kd3 {[%clk 0:00:05.7]} 29... Nb6 {[%clk 0:00:34.2]} 30.
Rxc5+ {[%clk 0:00:03.8]} 30... Kxc5 {[%clk 0:00:29.9]} 31. Rxc7+ {[%clk
0:00:04.5]} 31... Kb5 {[%clk 0:00:19.4]} 32. Rf7 {[%clk 0:00:05]} 32... Nd5
{[%clk 0:00:19]} 33. Ke4 {[%clk 0:00:05.3]} 33... Kc6 {[%clk 0:00:13.7]} 34. h4
{[%clk 0:00:05.5]} 34... Bd2 {[%clk 0:00:11.8]} 35. h5 {[%clk 0:00:05]} 35...
Kd6 {[%clk 0:00:12.1]} 36. Kf5 {[%clk 0:00:05.3]} 36... Bg5 {[%clk 0:00:08.4]}
37. Ra7 {[%clk 0:00:04]} 37... Ne7+ {[%clk 0:00:06.4]} 38. Kg4 {[%clk
0:00:02.2]} 38... Ke6 {[%clk 0:00:05.3]} 39. Ra6+ {[%clk 0:00:02.7]} 39... Kf7
{[%clk 0:00:05.4]} 40. a4 {[%clk 0:00:03.5]} 40... Bd2 {[%clk 0:00:05.2]} 41.
Rc6 {[%clk 0:00:03.2]} 41... f5+ {[%clk 0:00:05.2]} 42. Kh4 {[%clk 0:00:02.8]}
42... Nd5 {[%clk 0:00:05.2]} 43. Rd6 {[%clk 0:00:02.3]} 43... Be1+ {[%clk
0:00:01.9]} 44. Kg5 {[%clk 0:00:03.2]} 44... Ne7 {[%clk 0:00:01.3]} 45. Rd7
{[%clk 0:00:02.9]} 45... Bf2 {[%clk 0:00:01.4]} 46. Ra7 {[%clk 0:00:03.8]} 46...
Be3+ {[%clk 0:00:02.2]} 47. Kh4 {[%clk 0:00:03.4]} 47... Bxa7 {[%clk 0:00:03.1]}
48. Kh3 {[%clk 0:00:04.1]} 48... Kf6 {[%clk 0:00:03.6]} 49. f4 {[%clk
0:00:04.7]} 49... exf4 {[%clk 0:00:03.8]} 50. Kg2 {[%clk 0:00:04.9]} 50... Be3
{[%clk 0:00:04.6]} 51. Kf3 {[%clk 0:00:05.8]} 51... Kg5 {[%clk 0:00:05.1]} 52.
a5 {[%clk 0:00:06.7]} 52... Kxh5 {[%clk 0:00:06]} 53. a6 {[%clk 0:00:07.6]}
53... Kg5 {[%clk 0:00:06.3]} 54. Ke2 {[%clk 0:00:08.1]} 54... Ba7 {[%clk
0:00:07.2]} 55. Kf3 {[%clk 0:00:09]} 55... Nc6 {[%clk 0:00:07.8]} 56. Ke2 {[%clk
0:00:09.3]} 56... Nb4 {[%clk 0:00:08.7]} 57. Kf3 {[%clk 0:00:10.2]} 57... Nxa6
{[%clk 0:00:09.6]} 58. Ke2 {[%clk 0:00:11]} 58... Kg4 {[%clk 0:00:10.2]} 0-1

[Event "*** Titled Tuesday Blitz"]
[Site "Chess.com"]
[Date "2021.03.09"]
[Round "5"]
[White "CM_rui"]
[Black "eduardoperalta"]
[Result "0-1"]
[WhiteElo "2387"]
[BlackElo "2533"]
[TimeControl "180+1"]
[EndTime "10:59:43 PST"]
[Termination "eduardoperalta won by checkmate"]

1. e4 {[%clk 0:02:57.6]} 1... c5 {[%clk 0:02:59]} 2. Nf3 {[%clk 0:02:56.9]} 2...
Nc6 {[%clk 0:02:58.2]} 3. c4 {[%clk 0:02:56.5]} 3... g6 {[%clk 0:02:52.8]} 4. d4
{[%clk 0:02:56.4]} 4... cxd4 {[%clk 0:02:47.4]} 5. Nxd4 {[%clk 0:02:57.3]} 5...
Bg7 {[%clk 0:02:46.7]} 6. Be3 {[%clk 0:02:56.5]} 6... Nf6 {[%clk 0:02:45.4]} 7.
Nc3 {[%clk 0:02:56]} 7... O-O {[%clk 0:02:36.6]} 8. Be2 {[%clk 0:02:53.9]} 8...
d6 {[%clk 0:02:34.6]} 9. O-O {[%clk 0:02:53.6]} 9... Qa5 {[%clk 0:02:33.2]} 10.
Rc1 {[%clk 0:02:52.8]} 10... Nxd4 {[%clk 0:02:30]} 11. Bxd4 {[%clk 0:02:52.7]}
11... Be6 {[%clk 0:02:29.6]} 12. f4 {[%clk 0:02:47.8]} 12... Rfc8 {[%clk
0:02:28]} 13. b3 {[%clk 0:02:45.6]} 13... a6 {[%clk 0:02:24.8]} 14. Kh1 {[%clk
0:02:30.1]} 14... b5 {[%clk 0:02:14.5]} 15. cxb5 {[%clk 0:02:12.3]} 15... axb5
{[%clk 0:02:11.7]} 16. f5 {[%clk 0:02:01.1]} 16... Bd7 {[%clk 0:02:03.3]} 17.
fxg6 {[%clk 0:01:55.1]} 17... hxg6 {[%clk 0:02:01.6]} 18. Bxf6 {[%clk
0:01:41.1]} 18... Bxf6 {[%clk 0:01:58.4]} 19. Nd5 {[%clk 0:01:33.9]} 19... Bg5
{[%clk 0:01:54.3]} 20. Rxc8+ {[%clk 0:01:24.6]} 20... Rxc8 {[%clk 0:01:53.3]}
21. Qa1 {[%clk 0:01:22.1]} 21... Qd2 {[%clk 0:01:45.3]} 22. Bf3 {[%clk
0:01:06.1]} 22... Rc2 {[%clk 0:01:39.6]} 23. a4 {[%clk 0:00:52.8]} 23... bxa4
{[%clk 0:01:36.5]} 24. bxa4 {[%clk 0:00:53.7]} 24... Ra2 {[%clk 0:01:15.8]} 25.
Qb1 {[%clk 0:00:46.1]} 25... Bg4 {[%clk 0:01:11.2]} 26. Qb3 {[%clk 0:00:29.6]}
26... Bh3 {[%clk 0:01:01.8]} 27. Rg1 {[%clk 0:00:03.7]} 27... Be6 {[%clk
0:01:01]} 28. Qb8+ {[%clk 0:00:02.3]} 28... Kg7 {[%clk 0:01:00]} 29. Nc7 {[%clk
0:00:02.8]} 29... Bd7 {[%clk 0:00:48.6]} 30. Nd5 {[%clk 0:00:02.4]} 30... Bxa4
{[%clk 0:00:41]} 31. Qc7 {[%clk 0:00:01.3]} 31... e6 {[%clk 0:00:37.3]} 32. Ne7
{[%clk 0:00:01.4]} 32... Ra3 {[%clk 0:00:20.3]} 33. Qd8 {[%clk 0:00:01.5]} 33...
Bxe7 {[%clk 0:00:19.5]} 34. Qxe7 {[%clk 0:00:02.4]} 34... Bc6 {[%clk 0:00:18.1]}
35. Qh4 {[%clk 0:00:02.2]} 35... Qe3 {[%clk 0:00:16.6]} 36. Qg3 {[%clk
0:00:02.4]} 36... d5 {[%clk 0:00:16.1]} 37. exd5 {[%clk 0:00:02.4]} 37... Bxd5
{[%clk 0:00:13.9]} 38. Bxd5 {[%clk 0:00:02.8]} 38... Qxg3 {[%clk 0:00:13.6]} 39.
hxg3 {[%clk 0:00:03.7]} 39... exd5 {[%clk 0:00:14.1]} 40. Rd1 {[%clk 0:00:04.4]}
40... Ra5 {[%clk 0:00:14.1]} 41. Kh2 {[%clk 0:00:04.4]} 41... Kf6 {[%clk
0:00:14.5]} 42. g4 {[%clk 0:00:04.8]} 42... Ke5 {[%clk 0:00:14.7]} 43. Kg3
{[%clk 0:00:05.4]} 43... d4 {[%clk 0:00:15.1]} 44. Re1+ {[%clk 0:00:05.1]} 44...
Kd5 {[%clk 0:00:15.3]} 45. Kf4 {[%clk 0:00:05.7]} 45... Ra2 {[%clk 0:00:14.2]}
46. Re5+ {[%clk 0:00:05.8]} 46... Kc4 {[%clk 0:00:14]} 47. Re8 {[%clk
0:00:06.4]} 47... Rxg2 {[%clk 0:00:13.1]} 48. Rc8+ {[%clk 0:00:06.9]} 48... Kd3
{[%clk 0:00:13.1]} 49. g5 {[%clk 0:00:07.3]} 49... Rf2+ {[%clk 0:00:12.6]} 50.
Ke5 {[%clk 0:00:07.5]} 50... Rf5+ {[%clk 0:00:13.5]} 51. Kd6 {[%clk 0:00:07.3]}
51... Rxg5 {[%clk 0:00:13.6]} 52. Rf8 {[%clk 0:00:06.8]} 52... Rf5 {[%clk
0:00:13.8]} 53. Rh8 {[%clk 0:00:06.3]} 53... Kc3 {[%clk 0:00:13.7]} 54. Rh3+
{[%clk 0:00:05.9]} 54... d3 {[%clk 0:00:13.5]} 55. Kc6 {[%clk 0:00:05.9]} 55...
Kc2 {[%clk 0:00:13.3]} 56. Rh8 {[%clk 0:00:05.3]} 56... d2 {[%clk 0:00:14.2]}
57. Rd8 {[%clk 0:00:05.1]} 57... d1=Q {[%clk 0:00:14.5]} 58. Rxd1 {[%clk
0:00:06]} 58... Kxd1 {[%clk 0:00:15.3]} 59. Kd7 {[%clk 0:00:06.9]} 59... Kd2
{[%clk 0:00:15.8]} 60. Ke8 {[%clk 0:00:07.8]} 60... Kd3 {[%clk 0:00:16.7]} 61.
Kf8 {[%clk 0:00:08.7]} 61... Kd4 {[%clk 0:00:17.6]} 62. Kg7 {[%clk 0:00:09.6]}
62... Ke5 {[%clk 0:00:18.5]} 63. Kh6 {[%clk 0:00:10.5]} 63... Kf6 {[%clk
0:00:17.4]} 64. Kh7 {[%clk 0:00:10.7]} 64... g5 {[%clk 0:00:17.8]} 65. Kg8
{[%clk 0:00:11.6]} 65... Kg6 {[%clk 0:00:17.1]} 66. Kf8 {[%clk 0:00:12.5]} 66...
Re5 {[%clk 0:00:16.9]} 67. Kg8 {[%clk 0:00:12.3]} 67... Re8# {[%clk 0:00:17.5]}
0-1